Cogmind - Beta 14 @@@ ROGUE MODE // 2025.01.14 @ 18:00:14 Player: SuperSwiss Result: Destroyed by H-66 Slayer with Gauss Rifle Performance ------------- Evolutions (1) 500 Regions Visited (5) 1000 Robots Destroyed (52) 260 Value Destroyed (1309) 1309 Prototype IDs (3) 60 Alien Tech Used (0) 0 Bonus (917) 917 TOTAL SCORE: 4046 Bonus ------- Follower Combat Kills 531 Met Imprinter 300 Was Imprinted 300 Friendly Fire -214 Cogmind --------- Core Integrity 0/400 Matter 234/300 Energy 100/100 System Corruption 0% Temperature Cool (0) Movement Treading (250) Ox1 Location -6/Proximity Caves Parts ------- > --- POWER (1) -------- (None) > --- PROPULSION (2) --- Armored Treads > --- UTILITY (3) ------ Large Storage Unit Light Armor Plating Improved Medium Armor Plating > --- WEAPON (3) ------- Heavy Battle Rifle Makeshift Shrapnel Gun > --- INVENTORY (15) --- Makeshift Power Source Makeshift Power Source Improved Heat Sink Improved Cooling System Splice Drone Bay (6/6) High-powered Shock Rifle Heavy Machine Gun Mini Grenade Launcher Heavy Missile Launcher Mining Laser Phasing Sabre Self-destruct Interrupter (50) Peak State ------------ > --- POWER ------------ Makeshift Power Source > --- PROPULSION ------- Wheel Compact Wheel > --- UTILITY ---------- Large Storage Unit Light Armor Plating Splice Drone Bay > --- WEAPON ----------- Gauss Rifle Heavy Battle Rifle Phasing Sabre > --- INVENTORY -------- Makeshift Power Source Makeshift Power Source Wheel Improved Heat Sink Disposable Heat Sink Signal Interpreter Light Armor Plating Light Armor Plating Improved Assault Rifle Makeshift Shrapnel Gun Makeshift Shrapnel Gun EMP Blaster Mini Grenade Launcher Mining Laser Self-destruct Interrupter [Rating: 32] Favorites ----------- Power Ion Engine Engine Ion Engine Power Core Light Nuclear Core Propulsion Wheel Treads Armored Treads Wheel Wheel Utility Large Storage Unit Device Splice Drone Bay Storage Large Storage Unit Protection Light Armor Plating Weapon Improved Assault Rifle Energy Gun EM Pulse Gun Ballistic Gun Improved Assault Rifle Launcher Mini Grenade Launcher Special Weapon Mining Laser Slashing Weapon Phasing Sabre Build | -11 -10 -9 -9 -7 -6 ------- Run | Yrd Mat Mat Min Zio Pro Slots Evolved 2 | . . 2 . . . Power . | . . . . . . Propulsion . | . . . . . . Utility 1 | . . 1 . . . Weapon 1 | . . 1 . . . Parts Attached 57 | 6 8 17 1 12 13 Power 7 | 1 3 2 . 1 . Engine 5 | 1 1 2 . 1 . Core 2 | . 2 . . . . Reactor . | . . . . . . Propulsion 9 | 2 2 3 . . 2 Treads 1 | . . . . . 1 Leg . | . . . . . . Wheel 8 | 2 2 3 . . 1 Hover . | . . . . . . Flight . | . . . . . . Utility 11 | 1 1 4 . 2 3 Device 1 | . . . . 1 . Storage 2 | 1 1 . . . . Processor . | . . . . . . Hackware . | . . . . . . Protection 8 | . . 4 . 1 3 Artifact . | . . . . . . Weapon 30 | 2 2 8 1 9 8 Energy Gun 1 | 1 . . . . . Energy Cannon . | . . . . . . Ballistic Gun 21 | 1 2 7 . 5 6 Ballistic Cannon . | . . . . . . Launcher 4 | . . 1 1 . 2 Special Weapon 1 | . . . . 1 . Impact Weapon . | . . . . . . Slashing Weapon 3 | . . . . 3 . Piercing Weapon . | . . . . . . Special Melee Weapon . | . . . . . . Unidentified Prototypes 2 | . . 1 . 1 . Parts Lost 21 | . 3 9 . . 9 Power 5 | . 2 2 . . 1 Propulsion 7 | . 1 3 . . 3 Utility 4 | . . 2 . . 2 Weapon 5 | . . 2 . . 3 Highest Loss Streak 5 | . 2 3 . . 5 To Critical Strikes 1 | . . . . . 1 Average Slot Usage (%) 94 | . 84 93 100 100 98 Engine 9 | . 8 8 11 11 10 Core 1 | . 5 2 . . . Wheel 22 | . 27 21 22 22 21 Device 2 | . . . . 9 . Storage 11 | . 14 11 11 11 11 Protection 13 | . . 17 22 12 21 Ballistic Gun 28 | . 25 31 29 24 32 Launcher 2 | . . . 3 7 . Peak Build Rating 32 | 6 8 17 17 32 30 Average Rating 18 | 3 6 13 16 25 26 On Entrance 12 | . 6 8 17 17 25 Naked Turns . | . . . . . . Heaviest Build 47 | 12 29 40 40 47 47 Greatest Support 26 | 26 26 26 26 26 26 Greatest Overweight (x) 4 | . 2 3 1 1 4 Average Overweight (x) 1 | . . 1 1 1 1 Largest Inventory Capacity 15 | 8 15 15 15 15 15 Average Capacity 14 | 6 14 15 15 15 15 Most Carried 15 | 5 7 13 14 15 15 Average Carried 10 | . 3 9 13 14 13 Final Capacity 15 | 8 15 15 15 15 15 Final Carried 15 | . 6 12 14 15 12 Class Distribution -------------------- 66% | Scavenger-Tank 23% | Mutant 3% | Gunner Dominant Class ---------------- Mutant | -10/Materials Scavenger-Tank | -9/Materials Scavenger-Tank | -9/Mines Scavenger-Tank | -7/Zion Scavenger-Tank | -6/Proximity Caves Resources | -11 -10 -9 -9 -7 -6 ----------- Run | Yrd Mat Mat Min Zio Pro Matter Collected 1786 | 219 382 750 10 30 395 Remotely . | . . . . . . Salvage Created 1976 | . 500 1242 . . 234 Parts 123 | . 31 80 . . 12 Haulers Intercepted 5 | . 2 3 . . . Recyclers Shooed 1 | . . 1 . . . Parts Field Recycled . | . . . . . . Retrieved Matter . | . . . . . . Parts Self-Destructed 28 | . . . . . 28 Prevented 5 | . . . . . 5 Kills | -11 -10 -9 -9 -7 -6 ------- Run | Yrd Mat Mat Min Zio Pro Combat Hostiles Destroyed 37 | . 9 21 . . 7 Guns 32 | . 9 20 . . 3 AOE 5 | . . 1 . . 4 Classes Destroyed 9 | . 3 5 . . 1 Worker 5 | . . 5 . . . Builder 2 | . . 2 . . . Hauler 5 | . 2 3 . . . Recycler 1 | . . 1 . . . Operator 1 | . 1 . . . . Swarmer 10 | . . 5 . . 5 Grunt 19 | . 9 8 . . 2 Sentry 8 | . . 8 . . . Savage 1 | . . . . . 1 Best Kill Streak 5 | . 3 5 . . 3 Combat Bots Only 4 | . 3 4 . . 3 Max Kills in Single Turn 2 | . 1 2 . . 2 Gunslinging . | . . . . . . Exploded 2 | . . 1 . . 2 Melee . | . . . . . . Uniques/NPCs Destroyed . | . . . . . . Combat | -11 -10 -9 -9 -7 -6 -------- Run | Yrd Mat Mat Min Zio Pro Hostile Shots Fired 237 | . 42 104 . . 91 Missed 50 | . 7 24 . . 19 Damage Taken 2536 | . 456 982 . . 1098 Core 559 | . 144 235 . . 180 Absorbed by Shields . | . . . . . . Regen/Repaired (Parts) 12 | . . . . 12 . Core Remaining (%) 71 | 100 42 . . . . Volleys Fired 152 | . 51 72 . 5 24 Largest 3 | . 2 3 . 1 3 Hottest 100 | . 60 73 . 100 100 Shots Fired 383 | . 102 205 . 5 71 Gun 370 | . 102 200 . . 68 Cannon . | . . . . . . Launcher 8 | . . 5 . . 3 Special 5 | . . . . 5 . Kinetic 360 | . 92 200 . . 68 Thermal 5 | . . . . 5 . Explosive 3 | . . . . . 3 Electromagnetic 15 | . 10 5 . . . Robot Hit Streak 23 | . 11 23 . . 5 Robot Miss Streak 5 | . 2 3 . . 5 Penetration Max 1 | . . . . . 1 Secondary Targets 2 | . . 2 . . . Max Gunslinging Chain 1 | . . 1 . . . Shots Hit Robots 231 | . 70 124 . . 37 Core Hits 99 | . 26 48 . . 25 Critical Kills 1 | . . 1 . . . Critical Parts Destroyed 2 | . . 2 . . . Critical Strikes 4 | . . 4 . . . Destroy 4 | . . 4 . . . Melee Attacks 22 | . . . . 22 . Impact . | . . . . . . Slashing 22 | . . . . 22 . Piercing . | . . . . . . Sneak Attacks . | . . . . . . Combat Hostiles . | . . . . . . Follow-up Attacks . | . . . . . . Damage Inflicted 4041 | . 907 1901 . . 1233 Guns 3426 | . 902 1779 . . 745 Cannons . | . . . . . . Explosions 610 | . . 122 . . 488 Melee . | . . . . . . Ramming 5 | . 5 . . . . Kinetic 3317 | . 793 1779 . . 745 Thermal 20 | . . 20 . . . Explosive 488 | . . . . . 488 Electromagnetic 211 | . 109 102 . . . Impact . | . . . . . . Slashing . | . . . . . . Piercing . | . . . . . . Highest Corruption 1 | . 1 . . . . Average Corruption 1 | . 1 . . . . Corruption Purged . | . . . . . . Corruption Blocked . | . . . . . . Effects 4 | . 4 . . . . Message Errors 2 | . 2 . . . . Parts Rejected 1 | . 1 . . . . Data Loss (minor) 1 | . 1 . . . . Overload Shots . | . . . . . . Overflow Damage 15 | . . . . . 15 Projectiles . | . . . . . . Explosions 15 | . . . . . 15 Melee . | . . . . . . Knockbacks . | . . . . . . Impact . | . . . . . . Kinetic . | . . . . . . Secondary . | . . . . . . Self-Inflicted Damage 2 | . 2 . . . . Shots . | . . . . . . Rammed 1 | . 1 . . . . Targets Rammed 1 | . 1 . . . . Kicked . | . . . . . . Crushed . | . . . . . . Highest Temperature 234 | . 24 105 . 100 234 Average Temperature 47 | . 7 35 . 51 72 Received Heat Transfer 801 | . 264 390 . . 147 Siege Activations . | . . . . . . Robots Corrupted . | . . . . . . Combat Hostiles . | . . . . . . Parts Fried 1 | . 1 . . . . Impact Corruptions . | . . . . . . Robots Melted . | . . . . . . Combat Hostiles . | . . . . . . Parts Melted . | . . . . . . Heat Transferred . | . . . . . . Parts Sabotaged . | . . . . . . Parts Stolen . | . . . . . . Parts Stripped . | . . . . . . Power Chain Reactions 1 | . . 1 . . . Alert | -11 -10 -9 -9 -7 -6 ------- Run | Yrd Mat Mat Min Zio Pro Peak Influence 389 | . 243 389 87 . . Initial 87 | . . 8 87 . . Average 160 | . 88 247 87 . . Maximum Alert Level 1 | . 1 1 . . . Low Security (%) 56 | 100 84 20 100 . . Level 1 43 | . 15 79 . . . Level 2 . | . . . . . . Level 3 . | . . . . . . Level 4 . | . . . . . . Level 5 . | . . . . . . High Security . | . . . . . . Max Security . | . . . . . . Squads Dispatched 9 | . 2 6 . . 1 Investigation 3 | . . 3 . . . Extermination . | . . . . . . Reinforcement 5 | . 2 3 . . . Assault 1 | . . . . . 1 Garrison . | . . . . . . Intercept . | . . . . . . Searches Triggered . | . . . . . . Construction Impeded . | . . . . . . Haulers Reinforced . | . . . . . . Active Scanning Responses . | . . . . . . Cargo Convoy Interrupts . | . . . . . . Stealth | -11 -10 -9 -9 -7 -6 --------- Run | Yrd Mat Mat Min Zio Pro Distress Signals 7 | . 2 5 . . . Communications Jammed . | . . . . . . Distress Signals . | . . . . . . Times Spotted 78 | . 22 31 . . 25 Peak Tracking Total 7 | . 3 4 . . 7 Tactical Retreats 3 | . 1 1 . . 1 Traps | -11 -10 -9 -9 -7 -6 ------- Run | Yrd Mat Mat Min Zio Pro Traps Triggered 4 | . 2 2 . . . Indirectly . | . . . . . . Trap Hack Attempts . | . . . . . . Triggered . | . . . . . . Disarmed . | . . . . . . Reprogrammed . | . . . . . . Reused . | . . . . . . Traps Extracted . | . . . . . . Installed . | . . . . . . Triggered . | . . . . . . Machines | -11 -10 -9 -9 -7 -6 ---------- Run | Yrd Mat Mat Min Zio Pro Machines Disabled . | . . . . . . Max in Single Turn . | . . . . . . Machines Repaired . | . . . . . . Machines Dismantled . | . . . . . . Machines Sabotaged . | . . . . . . Overloaded Fab Kills . | . . . . . . Hacking | -11 -10 -9 -9 -7 -6 --------- Run | Yrd Mat Mat Min Zio Pro Machines Accessed 17 | . 8 8 1 . . Terminals 12 | . 6 6 . . . Fabricators . | . . . . . . Repair Stations . | . . . . . . Recycling Units 3 | . 2 1 . . . Scanalyzers 1 | . . 1 . . . Garrison Access . | . . . . . . Total Hacks 32 | . 15 16 1 . . Successful 24 | . 9 14 1 . . Failed 8 | . 6 2 . . . Catastrophic 1 | . 1 . . . . Database Lockouts . | . . . . . . Manual 15 | . 7 8 . . . Terminals 22 | . 13 9 . . . Fabricators . | . . . . . . Repair Stations . | . . . . . . Recycling Units 3 | . 2 1 . . . Scanalyzers 6 | . . 6 . . . Garrison Access . | . . . . . . Terminal Hacks 5 | . 3 1 1 . . Open Door 1 | . . . 1 . . Unreport Threat 2 | . 2 . . . . Transport Status 1 | . 1 . . . . Hauler Manifests 1 | . . 1 . . . Fabricator Hacks . | . . . . . . Repair Station Hacks . | . . . . . . Recycling Unit Hacks 3 | . 2 1 . . . Report Inventory 3 | . 2 1 . . . Scanalyzer 6 | . . 6 . . . Insert Component 3 | . . 3 . . . Analyze 3 | . . 3 . . . Garrison Access Hacks . | . . . . . . Unauthorized Hacks 10 | . 4 6 . . . Terminals 10 | . 4 6 . . . Botnet 10 | . 4 6 . . . Fabricators . | . . . . . . Repair Stations . | . . . . . . Recycling Units . | . . . . . . Scanalyzers . | . . . . . . Garrison Access . | . . . . . . Data Cores Recovered 1 | . 1 . . . . Used . | . . . . . . Hacking Detections 10 | . 6 4 . . . Full Trace Events 1 | . . 1 . . . Feedback Events . | . . . . . . Feedback Blocked . | . . . . . . Robot Schematics Acquired 2 | . . . . 2 . Robots Built . | . . . . . . Authchips . | . . . . . . Time . | . . . . . . Total Robot Build Rating . | . . . . . . Part Schematics Acquired 19 | . . 3 . 16 . Parts Built . | . . . . . . Authchips . | . . . . . . Time . | . . . . . . Total Part Build Rating . | . . . . . . Parts Repaired . | . . . . . . Time . | . . . . . . Parts Recycled . | . . . . . . Recycled Matter . | . . . . . . Retrieved Matter . | . . . . . . Retrieved Components . | . . . . . . Parts Scanalyzed 3 | . . 3 . . . Part Schematics Acquired 3 | . . 3 . . . Parts Damaged . | . . . . . . Bothacking | -11 -10 -9 -9 -7 -6 ------------ Run | Yrd Mat Mat Min Zio Pro Used RIF Installer . | . . . . . . Robots Hacked . | . . . . . . Non-combat . | . . . . . . Combat . | . . . . . . Robot Hacks Applied . | . . . . . . Relay Couplers Released . | . . . . . . Fabnet Peak Effective % . | . . . . . . Robots Rewired . | . . . . . . Allies Hacked . | . . . . . . Hacks Repelled . | . . . . . . Allies | -11 -10 -9 -9 -7 -6 -------- Run | Yrd Mat Mat Min Zio Pro Total Allies 10 | . . . 1 9 . Largest Group 9 | . . . 1 9 8 Highest-Rated Group 268 | . . . 31 268 229 Highest-Rated Ally 39 | . . . 31 39 39 Total Orders 4 | . . . . 4 . RETURN 4 | . . . . 4 . Ally Attacks 46 | . . . . . 46 Total Damage 1469 | . . . . . 1469 Kills 16 | . . . . . 16 Allies Corrupted . | . . . . . . Allies Melted . | . . . . . . Intel | -11 -10 -9 -9 -7 -6 ------- Run | Yrd Mat Mat Min Zio Pro Robot Analysis Total . | . . . . . . Derelict Logs Recovered 4 | . . . 1 1 2 Drone Launches 4 | . . . . 4 . Drone Recoveries 4 | . . . . 4 . Exploration | -11 -10 -9 -9 -7 -6 ------------- Run | Yrd Mat Mat Min Zio Pro Turns Passed 5140 | 41 1088 1208 255 1281 1267 Spaces Moved 3914 | 39 820 811 216 1035 993 Core 15 | 15 . . . . . Treads 4 | . . . . . 4 Legs . | . . . . . . Wheels 3895 | 24 820 811 216 1035 989 Hover . | . . . . . . Flight . | . . . . . . Fastest Speed 50 | 50 90 95 105 105 95 Average Speed 105 | 74 102 104 105 105 110 Slowest Speed 330 | 90 110 130 105 105 330 Overloaded Moves . | . . . . . . Propulsion Burnouts . | . . . . . . Robots Hopped . | . . . . . . Cave-ins Triggered . | . . . . . . Exploration Rate (%) 67 | 3 96 88 35 91 90 Regions Visited 5 Branch Regions 3 Pre-discovered Areas . | . . . . . . Known Exits Taken . | . . . . . . Unknown Exits Taken 5 | 1 1 1 1 1 . Scrap Searched 8 | . . . 1 3 4 Spaces Dug . | . . . . . . Terrain Destroyed 50 | . . 3 . . 47 Melee . | . . . . . . Projectile . | . . . . . . AOE 50 | . . 3 . . 47 Terrain Rammed . | . . . . . . Walls Destroyed . | . . . . . . Machines Disabled . | . . . . . . Actions | -11 -10 -9 -9 -7 -6 --------- Run | Yrd Mat Mat Min Zio Pro Total 4568 | 50 965 1018 243 1180 1112 Wait 351 | . 71 93 25 90 72 Move 3909 | 38 819 810 215 1034 993 Hop . | . . . . . . Pick Up 57 | 6 13 22 2 8 6 Fast Attach 1 | . . . . 1 . Attach 31 | 6 5 13 . 1 6 Detach . | . . . . . . Swap 25 | . 3 4 1 10 7 Drop 19 | . 2 4 . 9 4 Fire 152 | . 51 72 . 5 24 Melee 22 | . . . . 22 . Ram 1 | . 1 . . . . Kick . | . . . . . . Crush . | . . . . . . Escape Stasis . | . . . . . . Rewire . | . . . . . . Trap . | . . . . . . Miscellaneous . | . . . . . . Route ------- -11/Scrapyard -10/Materials (discovered 4 exits: *Mat x3 / [*Min]) -9/Materials (discovered 6 exits: [*Mat x3] / *Min x2 / [*Sto]) -9/Mines -7/Zion -6/Proximity Caves (discovered 1 exit: [*Fac]) History --------- Turn | Location | Event 6 | -11/Scrapyard | Discovered new exit (range 15) 42 | -11/Scrapyard | Entered Materials 84 | -10/Materials | Discovered new exit (range 16) 284 | -10/Materials | Discovered new exit (range 15) 316 | -10/Materials | Build established: Mutant 438 | -10/Materials | Core integrity fell below 50% 757 | -10/Materials | Discovered new exit (range 9) 795 | -10/Materials | Discovered new exit (range 8) 1130 | -10/Materials | Entered another Materials area 1130 | -9/Materials | Evolved 2 slots: Utility x1, Weapon x1 1260 | -9/Materials | Discovered new exit (range 16) 1260 | -9/Materials | Discovered new exit (range 5) 1335 | -9/Materials | Lost 3 parts (1n2w) 1558 | -9/Materials | Discovered new exit (range 6) 1729 | -9/Materials | Discovered new exit (range 8) 1753 | -9/Materials | Build established: Scavenger-Tank 1979 | -9/Materials | Core integrity fell below 50% 2097 | -9/Materials | Discovered new exit (range 16) 2320 | -9/Materials | Discovered new exit (range 11) 2338 | -9/Materials | Entered Mines 2341 | -9/Mines | Received a Mining Laser from a helpful Derelict 2353 | -9/Mines | Met a Derelict bent on vengeance 2386 | -9/Mines | Learned Materials emergency access door positions 2519 | -9/Mines | Assembled infested the area 2524 | -9/Mines | Assisted by a Guerilla fighting off Assembled 2525 | -9/Mines | Found the Drone Emporium 2530 | -9/Mines | Found Prototype Device 2582 | -9/Mines | A Derelict revealed a hidden shortcut to a safe place 2593 | -9/Mines | Entered Zion 2593 | -7/Zion | Accompanied by 1 ally 2743 | -7/Zion | Identified Splice Drone Bay 2796 | -7/Zion | Found CR-A16's Pointy Stick 2945 | -7/Zion | Met Imprinter 2963 | -7/Zion | Imprinted 2965 | -7/Zion | Declared Zion's savior 3085 | -7/Zion | Learned Factory emergency access door positions 3210 | -7/Zion | Visited the Megawrench Repair Shop 3345 | -7/Zion | Gained Derelict followers 3852 | -7/Zion | Discovered new exit (range 13) 3874 | -7/Zion | Entered Proximity Caves 3874 | -6/Proximity Caves | Accompanied by 8 allies 3876 | -6/Proximity Caves | Attracted the attention of an 0b10 checkpoint 3893 | -6/Proximity Caves | Learned 4 Factory zone layouts 4018 | -6/Proximity Caves | Attracted the attention of an 0b10 outpost 4145 | -6/Proximity Caves | Lost 3 allies 4269 | -6/Proximity Caves | Learned Factory emergency access door positions 4522 | -6/Proximity Caves | Core integrity fell below 20% 4574 | -6/Proximity Caves | Received a Behemoth hack from an annoying Tinkerer 4979 | -6/Proximity Caves | Spotted B-75 Beast 5100 | -6/Proximity Caves | Discovered new exit (range 8) 5141 | -6/Proximity Caves | Destroyed by H-66 Slayer with Gauss Rifle Last Messages --------------- 05073_ Found 42 Matter. 05073_ Found Med. Storage Unit. 05073_ Found Hvy. Machine Gun. 05073_ Found Hpw. Shock Rifle. 05073_ Found 31 Matter. 05075_ Acquired Hvy. Machine Gun. 05078_ Acquired Hpw. Shock Rifle. 05100_ EXIT=FOUND 05102_ Penetrated by Slug. 05105_ Hrd. Light Armor Plating destroyed. 05108_ Slug penetrates Wall. 05108_ Wheel destroyed. 05119_ Slug penetrates Wall. 05122_ Wheel destroyed. 05125_ Penetrated by Slug. 05125_ Mak. Power Source destroyed. 05132_ Penetrated by Slug. 05138_ Critical hit (Destroy). 05138_ Imp. Assault Rifle destroyed. 05141_ Penetrated by Slug. Map ----- +----------------------------------------------------+ | ?????????????????????????????????????????????????? | | ?????????????????????????????????????????????????? | | ?????????????????????????????????????????????????? | | ?????????????????????????????????????????????????? | | ?????????????????????????????????????????????????? | | ?????????????????????????????????????????????????? | | ?????????????????????????????????????????????????? | | ?????????????????????????????????????????????????? | | ?????????????????????????????????????????????????? | | ?????????????????????????????????????????????????? | | ?????????????????????????????????????????????????? | | ?????????????????????????????????????????????????? | | ?????????????????????????????????????????????????? | | ??#####???????????######?????????????????????????? | | ### ###???????### ###???????????????????????? | | ## #??????## ###?????????????????????? | | # # #???##### #?????????????????????? | | # #??## #?????????????????????? | | # ##??# #??????????????????????? | | ###???# ## ####???????????????????? | | ##?##### "### ## ##??###?????????????? | | ##?## #" ?# ## ## #?????????????? | | #### ###""# ## ##????????????? | | ### ## ## ##???????????? | | ### ## ##" ## < #???????????? | | ??# #???# "#@ #??????????? | | ??### #???# h #???????????? | | #?#### #???## ### ##???????????? | | ### ### % #????## ##????? #????????????? | | ## ## # %!##?????## m#?????????????????????? | | #???????## #?????????????????????? | | ##????????## #?????????????????????? | | ### #######??????????## #?????????????????????? | | ## #?????????????????? #?????????????????????? | | ##?????????????????? #?????????????????????? | | # ##???????????????????##?????????????????????? | | # #???????????????????????????????????????????? | | # ?????????????????????????????????????????? | | ???????????????????????????????????????? | | ### ?????????????????????????????????????? | | ??? ????????????????????????????????????? | | ???? ???????????????????????????????????? | | #???? ????????????????????????????????????? | | # #?????????????????????????????????????????? | | # ?????????????????????????????????????????? | | ? ##????????????????????????????????????????? | | ?????? #?????????????????????????????????????????? | | ???????#?????????????????????????????????????????? | | ?????????????????????????????????????????????????? | | ?????????????????????????????????????????????????? | +----------------------------------------------------+ Best States ------------- Heat Dissipation 28 Energy Generation 15 Energy Capacity 250 Matter Stores 300 Matter Capacity 300 Sight Range 16 Terrain Scan Density 10 Armor Coverage 375 Evasion (%) 50 Recoil Reduction 1 Item Schematics ----------------- Imp. Assault Rifle | -9/Materials | Scanalyzed Signal Interpreter | -9/Materials | Scanalyzed Mni. Grenade Launcher | -9/Materials | Scanalyzed Powered Hammer | -7/Zion | Archive Thermic Laser | -7/Zion | Archive Imp. Carbon-fiber Leg | -7/Zion | Archive Adv. Melee Analysis Suite | -7/Zion | Archive Arc Projector | -7/Zion | Archive Imp. Actuator Array | -7/Zion | Archive Shock Absorption System | -7/Zion | Archive Variable Charge Gun | -7/Zion | Archive Point Defense System | -7/Zion | Archive Med. Reactive Plating | -7/Zion | Archive Adv. Heat Sink | -7/Zion | Archive Magnetic Acceleration Cannon | -7/Zion | Archive Gauss Rifle | -7/Zion | Archive Imp. EM Pulse Cannon | -7/Zion | Archive Imp. Reaction Control System | -7/Zion | Archive Tiamat Missile Launcher | -7/Zion | Archive Robot Schematics ------------------ A-02 Transporter | -7/Zion | Archive S-27 Virus | -7/Zion | Archive Fabricated ------------ Nothing Alien Tech Used ----------------- None Achievements -------------- Backstab Challenges ------------ None Game ------ Seed NavigationGhostSheargun Manual? 0 Play Time 01:07:20 Cumulative 34.0 hours Start 2025.01.14 @ 09:44:36 End 2025.01.14 @ 18:00:14 Sessions 5 Manual Loads 0 Difficulty Rogue Special Mode None Game No. 44 Rogue 41 Adventurer 0 Explorer 3 Win Type - Total 0 Types 0/0/0/0/0/0/0/0/0 Lore% 9 Gallery% 29 Achievement% 25 Wizard Run 0 Options --------- Layout 0 ASCII 0 Keyboard 0 Movement Numpad Keybinds 0 Fullscreen 2 Font 16/SmallcapsGlow Map View 88x55 Zoom Use 0% Tactical HUD 1 Map Filters NONE Filters NONE Steam 1 RUN: 7a5fb973-bb04-4953-b006-3ed88f7da6ff